bitfinex-derivatives/quotes_BTCF0:USTF0_20251228
["timestamp","ask_amount","ask_price","bid_price","bid_amount"]
[1766923358328,0.09685588,87906.0,87884.0,0.14376952]
[1766923358826,0.09685588,87906.0,87894.0,0.0113864]
[1766923359228,0.09685588,87906.0,87884.0,0.11376952]
[1766923359229,0.09685588,87906.0,87891.0,0.0113867]
[1766923365028,0.02554798,87905.0,87891.0,0.0113867]
[1766923365228,0.09685588,87906.0,87891.0,0.0113867]
[1766923365429,0.02563963,87905.0,87891.0,0.0113867]
[1766923365626,0.09685588,87906.0,87893.0,0.0113865]
[1766923365832,0.02563963,87905.0,87893.0,0.0113865]
[1766923366034,0.09685588,87906.0,87893.0,0.0113865]
[1766923366332,0.02563963,87905.0,87893.0,0.0113865]
[1766923366628,0.09685588,87906.0,87893.0,0.0113865]
[1766923366830,0.02563962,87905.0,87893.0,0.0113865]
[1766923367028,0.09685588,87906.0,87893.0,0.0113865]
[1766923367229,0.02563962,87905.0,87893.0,0.0113865]
[1766923367534,0.09685588,87906.0,87893.0,0.0113865]
[1766923367829,0.02563961,87905.0,87893.0,0.0113865]
[1766923368028,0.09685588,87906.0,87893.0,0.0113865]
[1766923368328,0.02563961,87905.0,87893.0,0.0113865]
[1766923368529,0.09685588,87906.0,87893.0,0.0113865]
[1766923368731,0.02564111,87905.0,87893.0,0.0113865]
[1766923368929,0.09685588,87906.0,87893.0,0.0113865]
[1766923369131,0.02564111,87905.0,87893.0,0.0113865]
[1766923369430,0.09685588,87906.0,87890.0,0.0113869]
[1766923369630,0.02564116,87905.0,87890.0,0.0113869]
[1766923369825,0.09685588,87906.0,87890.0,0.0113869]
[1766923375135,9.588e-05,87906.0,87890.0,0.0113869]
[1766923375337,0.15372,87905.0,87890.0,0.0113869]
[1766923380843,0.15372,87905.0,87881.0,0.08199449]
[1766923380844,0.15372,87905.0,87881.0,0.09338249]
[1766923381032,0.15372,87905.0,87881.0,0.12338249]
[1766923381232,0.15372,87905.0,87882.0,0.11376887]
[1766923381440,0.15372,87905.0,87882.0,0.14376887]
[1766923382243,0.15372,87905.0,87893.0,0.0113865]
[1766923383138,9.588e-05,87906.0,87893.0,0.0113865]
[1766923383346,0.15372,87905.0,87893.0,0.0113865]
[1766923383640,0.15372,87904.0,87897.0,0.011386]
[1766923387747,0.15372,87904.0,87894.0,0.0113863]
[1766923388449,0.05696,87903.0,87894.0,0.0113863]
[1766923389346,0.05696,87903.0,87896.0,0.011386]
[1766923390144,0.05696,87902.0,87896.0,0.011386]
[1766923390343,9.588e-05,87906.0,87886.0,0.0113874]
[1766923390648,0.15372,87905.0,87898.0,0.0113859]
[1766923391847,0.15372,87905.0,87895.0,0.0113862]
[1766923392047,0.15372,87905.0,87898.0,0.0113859]
[1766923395948,0.15372,87905.0,87895.0,0.0113862]
[1766923397842,0.15372,87905.0,87886.0,0.0113874]
[1766923398048,0.15372,87905.0,87886.0,0.0413874]
[1766923398348,0.15372,87905.0,87887.0,0.11376564]
[1766923398548,0.15372,87905.0,87887.0,0.13376564]
[1766923399049,0.15372,87905.0,87896.0,0.0113861]
[1766923402744,9.588e-05,87906.0,87896.0,0.0113861]
[1766923403045,0.05696,87905.0,87886.0,0.0113874]
[1766923403244,0.05696,87905.0,87886.0,0.0413874]
[1766923403453,9.588e-05,87906.0,87887.0,0.11376434]
[1766923403653,0.05696,87905.0,87897.0,0.011386]
[1766923430181,0.05696,87905.0,87894.0,0.0113863]
[1766923434382,0.05696,87905.0,87886.0,0.02447221]
[1766923434573,0.05696,87905.0,87886.0,0.0413874]
[1766923434773,0.05696,87905.0,87887.0,0.11376628]
[1766923434973,9.588e-05,87906.0,87887.0,0.14376628]
[1766923435182,0.05696,87905.0,87887.0,0.14376628]
[1766923436185,0.05696,87905.0,87894.0,0.0113863]
[1766923437586,9.588e-05,87906.0,87894.0,0.0113863]
[1766923437790,0.05696,87905.0,87894.0,0.0113863]
[1766923438282,9.588e-05,87906.0,87894.0,0.0113863]
[1766923438483,0.05696,87905.0,87894.0,0.0113863]
[1766923439182,0.05696,87905.0,87883.0,0.09676]
[1766923439386,0.05696,87905.0,87883.0,0.12676]
[1766923439685,0.05696,87905.0,87884.0,0.11376628]
[1766923439886,0.05696,87905.0,87884.0,0.14376628]
[1766923440182,0.05696,87905.0,87888.0,0.0113871]
[1766923440384,0.05696,87905.0,87890.0,0.0113868]
[1766923440779,0.05696,87905.0,87891.0,0.11377276]
[1766923441690,0.05696,87905.0,87892.0,0.0113866]
[1766923443492,0.05696,87905.0,87884.0,0.0113877]
[1766923443691,0.05696,87905.0,87884.0,0.0413877]
[1766923443892,0.05696,87905.0,87884.0,0.15515528]
[1766923444193,0.05696,87905.0,87896.0,0.011386]
[1766923452996,0.05696,87905.0,87893.0,0.0113865]
[1766923458697,0.05696,87904.0,87893.0,0.0113865]
[1766923461312,0.05696,87904.0,87895.0,0.0113862]
[1766923466316,0.05696,87904.0,87892.0,0.0113866]
[1766923467316,0.05696,87904.0,87883.0,0.19183958]
[1766923467517,0.05696,87904.0,87883.0,0.20875449]
[1766923467819,0.05696,87904.0,87884.0,0.11376823]
[1766923468011,0.05696,87904.0,87884.0,0.14376823]
[1766923468214,0.05696,87904.0,87893.0,0.0113864]
[1766923470519,0.05696,87904.0,87895.0,0.0113862]
[1766923475022,0.05696,87904.0,87897.0,0.011386]
[1766923482127,0.05696,87904.0,87896.0,0.0113861]
[1766923488249,0.05696,87904.0,87893.0,0.0113865]
[1766923493254,0.05696,87904.0,87885.0,0.0113875]
[1766923493455,0.05696,87904.0,87885.0,0.0413875]
[1766923494044,0.05696,87904.0,87886.0,0.11376758]
[1766923494252,0.05696,87904.0,87896.0,0.0113861]
[1766923504060,0.05696,87904.0,87883.0,0.09676]
[1766923504263,0.05696,87904.0,87893.0,0.0113865]
[1766923504557,0.05696,87904.0,87886.0,0.11376564]
[1766923504757,0.05696,87904.0,87892.0,0.0113866]
[1766923510766,0.05696,87904.0,87883.0,0.17875449]
[1766923510964,0.05696,87904.0,87894.0,0.0113863]
[1766923526375,0.05696,87904.0,87891.0,0.0113867]
[1766923526876,0.05696,87904.0,87893.0,0.0113865]
[1766923536980,0.05696,87904.0,87890.0,0.0113868]
[1766923537173,0.05696,87904.0,87892.0,0.0113866]
[1766923541084,0.05696,87904.0,87894.0,0.0113863]
[1766923546081,9.588e-05,87906.0,87894.0,0.0113863]
[1766923548999,9.588e-05,87906.0,87896.0,0.011386]
[1766923551698,9.588e-05,87906.0,87898.0,0.0113858]
[1766923551894,8e-08,87907.0,87902.0,0.0113853]
[1766923552502,0.00017066,87910.0,87902.0,0.0113853]
[1766923552693,0.05696,87908.0,87902.0,0.0113853]
[1766923553392,0.00017066,87910.0,87902.0,0.0113853]
[1766923553602,0.05696,87908.0,87902.0,0.0113853]
[1766923556600,0.00017066,87910.0,87902.0,0.0113853]
[1766923556794,0.05701669,87910.0,87906.0,0.0113847]
[1766923556994,0.05701669,87910.0,87902.0,0.0113852]
[1766923559394,0.05701669,87910.0,87899.0,0.0113857]
[1766923560506,0.05701669,87910.0,87897.0,0.00011431]
[1766923567712,0.05701669,87910.0,87898.0,0.0113858]
[1766923572215,0.05701669,87910.0,87897.0,0.00011431]
[1766923572517,0.05701669,87910.0,87897.0,0.01150021]
[1766923575309,0.05701669,87910.0,87897.0,0.00011431]
[1766923581919,0.05701669,87910.0,87898.0,0.0113859]
[1766923593935,0.05701669,87910.0,87900.0,0.0113856]
[1766923599838,0.05701669,87910.0,87897.0,0.01150021]
[1766923603841,0.05701669,87910.0,87899.0,0.0113857]
[1766923611375,0.05701669,87910.0,87897.0,0.00011431]
[1766923613280,0.05701669,87910.0,87898.0,0.0113858]
[1766923615080,0.05701669,87910.0,87900.0,0.0113856]
[1766923630890,5.669e-05,87910.0,87900.0,0.0113856]
[1766923633995,5.669e-05,87910.0,87897.0,0.01150021]
[1766923637598,5.669e-05,87910.0,87897.0,0.00011431]
[1766923641101,5.669e-05,87910.0,87898.0,0.0113859]
[1766923654127,5.669e-05,87910.0,87897.0,0.00011431]
[1766923654327,5.669e-05,87910.0,87903.0,0.0113851]
[1766923654524,5.669e-05,87910.0,87905.0,0.0113849]
[1766923655730,5.669e-05,87910.0,87907.0,0.0113846]
[1766923655930,9e-08,87913.0,87907.0,0.0113846]
[1766923656130,9e-08,87913.0,87909.0,0.0113844]
[1766923659329,9e-08,87913.0,87906.0,0.0113848]
[1766923675141,9e-08,87913.0,87908.0,0.0113844]
[1766923676845,9e-08,87913.0,87910.0,0.0113843]
[1766923678045,0.05696,87912.0,87910.0,0.0113843]
[1766923678230,0.05696,87911.0,87910.0,0.0113843]
[1766923679342,0.05696,87912.0,87910.0,0.0113843]
[1766923680646,0.05696,87913.0,87910.0,0.0113843]
[1766923680845,1e-08,87913.0,87910.0,0.0113843]
[1766923686448,1e-08,87913.0,87907.0,0.0113846]
[1766923687652,1e-08,87913.0,87909.0,0.0113844]
[1766923696959,1e-08,87913.0,87906.0,0.0113848]
[1766923699259,1e-08,87913.0,87908.0,0.0113845]
[1766923719989,3e-08,87912.0,87908.0,0.0113845]
[1766923720282,1e-08,87913.0,87908.0,0.0113845]
[1766923722885,1e-08,87913.0,87905.0,0.0113849]
[1766923726697,1e-08,87913.0,87902.0,0.0113853]
[1766923726898,1e-08,87913.0,87904.0,0.011385]
[1766923730200,1e-08,87913.0,87903.0,0.0113851]
[1766923731698,1e-08,87913.0,87905.0,0.0113849]
[1766923732294,1e-08,87913.0,87897.0,0.00011431]
[1766923732802,1e-08,87913.0,87904.0,0.011385]
[1766923733099,0.00017066,87920.0,87906.0,0.0113848]
[1766923733401,0.17812673,87919.0,87903.0,0.0113851]
[1766923733605,0.02440673,87918.0,87903.0,0.0113851]
[1766923735002,0.02440673,87918.0,87905.0,0.0113849]
[1766923736801,0.02440673,87918.0,87902.0,0.0113853]
[1766923737002,0.02440673,87918.0,87897.0,0.00011431]
[1766923737202,0.0113836,87916.0,87900.0,0.0113855]
[1766923737405,0.02440673,87915.0,87900.0,0.0113855]
[1766923742404,0.0113838,87914.0,87897.0,0.00011431]
[1766923742795,0.0113842,87911.0,87897.0,0.00011431]
[1766923743000,0.0113845,87909.0,87885.0,0.15372]
[1766923743201,0.0113849,87906.0,87889.0,0.0113869]
[1766923743397,0.1081448,87907.0,87885.0,0.15372]
[1766923743607,0.1081448,87907.0,87890.0,0.0113869]
[1766923744011,0.1081448,87907.0,87890.0,0.01144359]
[1766923746113,0.09676,87907.0,87890.0,0.01144359]
[1766923750096,0.09676,87907.0,87875.0,0.06497204]
[1766923750097,0.011385,87905.0,87877.0,0.09676]
[1766923750411,0.09676,87907.0,87889.0,0.011387]
[1766923750412,0.05696,87904.0,87889.0,0.011387]
[1766923751009,0.05696,87904.0,87891.0,0.0113867]
[1766923752312,0.05696,87904.0,87893.0,0.0113864]
[1766923758413,0.05696,87904.0,87890.0,0.0113868]
[1766923759520,0.05696,87904.0,87887.0,0.0113872]
[1766923766932,0.0113852,87903.0,87887.0,0.0113872]
[1766923767133,0.0113852,87903.0,87884.0,0.0113876]
[1766923767528,0.05696,87904.0,87881.0,0.011388]
[1766923767738,0.0113861,87897.0,87879.0,0.06150518]
[1766923767929,0.00017066,87905.0,87878.0,0.0113884]
[1766923767930,0.0113863,87895.0,87878.0,0.0113884]
[1766923768331,0.05696,87896.0,87878.0,0.0113884]
[1766923769429,0.0683462,87896.0,87878.0,0.0113884]
[1766923772941,0.05696,87896.0,87878.0,0.0113884]
[1766923773340,0.05696,87896.0,87880.0,0.0113881]
[1766923776347,0.05696,87896.0,87882.0,0.0113878]
[1766923782047,0.0683462,87896.0,87879.0,0.0113883]
[1766923782352,0.0113864,87894.0,87877.0,0.09676]
[1766923782537,0.0113867,87892.0,87877.0,0.09676]
[1766923782740,0.011387,87890.0,87873.0,0.0113891]
[1766923783054,0.05696,87890.0,87872.0,0.0113892]
[1766923783349,0.05696,87890.0,87871.0,0.1081893]
[1766923783745,0.05696,87890.0,87873.0,0.011389]
[1766923784445,0.05696,87890.0,87877.0,0.0113885]
[1766923785544,0.05696,87890.0,87879.0,0.0113883]
[1766923793848,0.05696,87890.0,87876.0,0.0113886]
[1766923795951,0.05696,87890.0,87878.0,0.0113884]
[1766923801763,0.05696,87890.0,87880.0,0.0113881]
[1766923805566,0.05696,87890.0,87873.0,0.02850518]
[1766923805770,0.05696,87890.0,87772.0,0.57358837]
[1766923805771,0.02507544,87889.0,87860.0,0.0113907]
[1766923805970,0.0113885,87878.0,87857.0,0.0113912]
[1766923806163,0.15376,87877.0,87857.0,0.0113912]
[1766923806363,0.15376,87877.0,87855.0,0.00010813]
[1766923806364,0.15376,87877.0,87859.0,0.0113908]
[1766923806565,0.15376,87877.0,87861.0,0.0113906]
[1766923808865,0.15376,87877.0,87863.0,0.0113903]
[1766923819579,0.15376,87877.0,87855.0,0.00010813]
[1766923819580,0.15376,87877.0,87865.0,0.0113901]
[1766923820476,0.15376,87877.0,87862.0,0.0113905]
[1766923820978,0.15376,87877.0,87855.0,0.00010813]
[1766923821383,0.15376,87877.0,87863.0,0.0113903]
[1766923822271,0.05696,87876.0,87872.0,0.0113891]
[1766923822476,0.05696,87877.0,87872.0,0.0113891]
[1766923822677,0.05696,87878.0,87872.0,0.0113891]
[1766923823083,0.05696,87881.0,87872.0,0.0113891]
[1766923824186,0.05696,87881.0,87869.0,0.0113896]
[1766923824688,0.05696,87881.0,87871.0,0.0113893]
[1766923825783,0.05696,87881.0,87859.0,0.0968]
[1766923826188,0.05696,87881.0,87872.0,0.0113892]
[1766923832788,0.02679117,87880.0,87872.0,0.0113892]
[1766923832991,0.05696,87881.0,87872.0,0.0113892]
[1766923833188,0.02679117,87880.0,87874.0,0.0113889]
[1766923833395,0.05696,87881.0,87874.0,0.0113889]
[1766923833595,0.02679866,87880.0,87874.0,0.0113889]
[1766923833795,0.05696,87881.0,87874.0,0.0113889]
[1766923833997,0.02679866,87880.0,87874.0,0.0113889]
[1766923834297,0.02680867,87879.0,87874.0,0.0113889]
[1766923834598,0.05696,87881.0,87874.0,0.0113889]
[1766923834898,0.02680867,87880.0,87874.0,0.0113889]
[1766923835091,0.02680867,87879.0,87874.0,0.0113889]
[1766923835285,0.0268269,87878.0,87874.0,0.0113889]
[1766923835502,0.05696,87881.0,87874.0,0.0113889]
[1766923835804,0.05696,87881.0,87871.0,0.0113893]
[1766923843415,0.05696,87881.0,87873.0,0.0113891]
[1766923845916,0.05696,87881.0,87872.0,0.0113892]
[1766923847319,0.05696,87881.0,87869.0,0.0113896]
[1766923847520,0.02636263,87880.0,87869.0,0.0113896]
[1766923847710,0.02636263,87879.0,87869.0,0.0113896]
[1766923848012,0.02636263,87878.0,87869.0,0.0113896]
[1766923848211,0.05696,87881.0,87869.0,0.0113896]
[1766923848411,0.0263634,87880.0,87869.0,0.0113896]
[1766923848711,0.0263634,87879.0,87869.0,0.0113896]
[1766923848913,0.0263634,87878.0,87869.0,0.0113896]
[1766923849218,0.05696,87881.0,87871.0,0.0113893]
[1766923849419,0.02636434,87880.0,87871.0,0.0113893]
[1766923849620,0.02636434,87879.0,87871.0,0.0113893]
[1766923849824,0.02636434,87878.0,87868.0,0.0113897]
[1766923850013,0.02636434,87877.0,87868.0,0.0113897]
[1766923850214,0.05696,87881.0,87868.0,0.0113897]
[1766923850414,0.0263654,87880.0,87868.0,0.0113897]
[1766923850619,0.0263654,87879.0,87868.0,0.0113897]
[1766923850815,0.0263654,87878.0,87868.0,0.0113897]
[1766923851021,0.0263654,87877.0,87868.0,0.0113897]
[1766923851324,0.05696,87881.0,87868.0,0.0113897]
[1766923851625,0.02636688,87880.0,87868.0,0.0113897]
[1766923851824,0.02636688,87879.0,87870.0,0.0113894]
[1766923852015,0.02636688,87878.0,87870.0,0.0113894]
[1766923852215,0.02636688,87877.0,87870.0,0.0113894]
[1766923852416,0.05696,87881.0,87870.0,0.0113894]
[1766923852625,0.02636987,87880.0,87870.0,0.0113894]
[1766923852824,0.02636987,87879.0,87870.0,0.0113894]
[1766923853026,0.02636987,87878.0,87870.0,0.0113894]
[1766923853227,0.02636987,87877.0,87870.0,0.0113894]
[1766923853432,0.05696,87881.0,87870.0,0.0113894]
[1766923853627,0.02637002,87880.0,87870.0,0.0113894]
[1766923853821,0.02637002,87879.0,87870.0,0.0113894]
[1766923854020,0.02637002,87878.0,87870.0,0.0113894]
[1766923854220,0.02637002,87877.0,87870.0,0.0113894]
[1766923854425,0.05696,87881.0,87870.0,0.0113894]
[1766923854627,0.02637015,87880.0,87870.0,0.0113894]
[1766923854927,0.02637015,87879.0,87870.0,0.0113894]
[1766923855124,0.02637015,87878.0,87870.0,0.0113894]
[1766923855330,0.02637015,87877.0,87870.0,0.0113894]
[1766923855530,0.05696,87881.0,87870.0,0.0113894]
[1766923855731,0.02637025,87880.0,87870.0,0.0113894]
[1766923855920,0.02637025,87879.0,87870.0,0.0113894]
[1766923856121,0.02637025,87878.0,87870.0,0.0113894]
[1766923856323,0.02637025,87877.0,87870.0,0.0113894]
[1766923856622,0.05696,87881.0,87870.0,0.0113894]
[1766923856822,0.02637026,87880.0,87872.0,0.0113891]
[1766923857022,0.02637026,87879.0,87872.0,0.0113891]
[1766923857233,0.02637026,87878.0,87872.0,0.0113891]
[1766923857531,0.02637026,87877.0,87872.0,0.0113891]
[1766923857829,0.05696,87881.0,87872.0,0.0113891]
[1766923858030,0.02637035,87880.0,87872.0,0.0113891]
[1766923858221,0.02637035,87879.0,87872.0,0.0113891]
[1766923858420,0.02637035,87878.0,87872.0,0.0113891]
[1766923858630,0.02637035,87877.0,87872.0,0.0113891]
[1766923858823,0.05696,87881.0,87877.0,0.0113886]
[1766923859024,8e-08,87880.0,87877.0,0.0113886]
[1766923859226,0.05696,87882.0,87877.0,0.0113886]
[1766923859730,0.05696,87882.0,87874.0,0.0113889]
[1766923868936,0.05696,87882.0,87871.0,0.0113893]
[1766923877139,0.05696,87882.0,87868.0,0.0113897]
[1766923877344,0.0113881,87881.0,87865.0,0.0113901]
[1766923877535,0.0113884,87879.0,87865.0,0.0113901]
[1766923877941,0.0113884,87879.0,87862.0,0.0113905]
[1766923881246,0.0113884,87879.0,87863.0,0.0968]
[1766923884248,0.05696,87882.0,87863.0,0.0968]
[1766923884249,0.0113887,87877.0,87863.0,0.0968]
[1766923884439,0.011389,87874.0,87863.0,0.0968]
[1766923884939,0.011389,87874.0,87856.0,0.02447944]
[1766923885142,0.01155966,87874.0,87856.0,0.0413912]
[1766923885442,0.01155966,87874.0,87857.0,0.15376]
[1766923886245,0.0113896,87869.0,87853.0,0.01308824]
[1766923886440,0.0113893,87872.0,87858.0,0.05696]
[1766923886747,0.00017066,87874.0,87858.0,0.05696]
[1766923887051,0.00017066,87874.0,87855.0,0.01149943]
[1766923887247,0.00017066,87874.0,87856.0,0.15376]
[1766923888052,0.00017066,87874.0,87857.0,0.0113912]
[1766923890454,0.00017066,87874.0,87859.0,0.0113909]
[1766923894756,0.00017066,87874.0,87861.0,0.0113906]
[1766923903970,0.00017066,87874.0,87863.0,0.0113904]
[1766923904970,0.00017066,87874.0,87860.0,0.0113908]
[1766923906464,0.00017066,87874.0,87859.0,0.15376]
[1766923906760,0.00017066,87874.0,87860.0,0.05696]
[1766923917085,0.00017066,87874.0,87859.0,0.0113909]
[1766923917284,0.00017066,87874.0,87860.0,0.05696]
[1766923935398,0.00017066,87874.0,87860.0,0.0683507]
[1766923940600,0.00017066,87874.0,87861.0,0.05696]
[1766923943711,0.00017066,87874.0,87862.0,0.0113905]
[1766923949232,0.068348,87882.0,87862.0,0.0113905]
[1766923949420,0.02594079,87881.0,87862.0,0.0113905]
[1766923949715,0.02594079,87880.0,87862.0,0.0113905]
[1766923949918,0.02594079,87879.0,87862.0,0.0113905]
[1766923950114,0.02594079,87878.0,87862.0,0.0113905]
[1766923950315,0.02594079,87877.0,87862.0,0.0113905]
[1766923950523,0.02594079,87876.0,87862.0,0.0113905]
[1766923950730,0.02594079,87875.0,87862.0,0.0113905]
[1766923950920,0.02594079,87874.0,87862.0,0.0113905]
[1766923951120,0.02594079,87873.0,87862.0,0.0113905]
[1766923951321,0.02594079,87872.0,87862.0,0.0113905]
[1766923951520,0.00017066,87879.0,87862.0,0.0113905]
[1766923951727,0.02594085,87878.0,87862.0,0.0113905]
[1766923951928,0.02594085,87877.0,87862.0,0.0113905]
[1766923952128,0.02594085,87876.0,87861.0,0.00017066]
[1766923952429,0.02594085,87875.0,87861.0,0.05713066]
[1766923952627,0.02594085,87874.0,87861.0,0.05713066]
[1766923952819,0.02594085,87873.0,87861.0,0.06852126]
[1766923953020,0.02594085,87872.0,87861.0,0.06852126]
[1766923953222,0.00017066,87879.0,87861.0,0.06852126]
[1766923953422,0.02594079,87878.0,87861.0,0.06852126]
[1766923953631,0.02594079,87877.0,87861.0,0.06852126]
[1766923953829,0.02594079,87876.0,87861.0,0.06852126]
[1766923954022,0.02594079,87875.0,87861.0,0.06852126]
[1766923954222,0.02594079,87874.0,87861.0,0.06852126]
[1766923954522,0.02594079,87873.0,87861.0,0.06852126]
[1766923954721,0.02594079,87872.0,87861.0,0.06852126]
[1766923954930,0.00017066,87879.0,87861.0,0.06852126]
[1766923955131,0.02594077,87878.0,87861.0,0.06852126]
[1766923955330,0.02594077,87877.0,87861.0,0.06852126]
[1766923955535,0.02594077,87876.0,87861.0,0.06852126]
[1766923955735,0.02594077,87875.0,87861.0,0.06852126]
[1766923956030,0.02594077,87874.0,87861.0,0.06852126]
[1766923956232,0.02594077,87873.0,87861.0,0.06852126]
[1766923956432,0.02594077,87872.0,87861.0,0.06852126]
[1766923956732,0.00017066,87879.0,87861.0,0.06852126]
[1766923956932,0.02594065,87878.0,87861.0,0.06852126]
[1766923957134,0.02594065,87877.0,87861.0,0.06852126]
[1766923957322,0.02594065,87876.0,87861.0,0.06852126]
[1766923957518,0.02594065,87875.0,87861.0,0.06852126]
[1766923957721,0.02594065,87874.0,87861.0,0.06852126]
[1766923957937,0.02594065,87873.0,87861.0,0.06852126]
[1766923958124,0.02594065,87872.0,87861.0,0.06852126]
[1766923958324,0.00017066,87879.0,87861.0,0.06852126]
[1766923958523,0.02594062,87878.0,87863.0,0.0113904]
[1766923958724,0.02594062,87877.0,87863.0,0.0113904]
[1766923959023,0.02594062,87876.0,87863.0,0.0113904]
[1766923959224,0.02594062,87875.0,87863.0,0.0113904]
[1766923959524,0.02594062,87874.0,87863.0,0.0113904]
[1766923959729,0.02594062,87873.0,87863.0,0.0113904]
[1766923959927,0.02594062,87872.0,87863.0,0.0113904]
[1766923960128,0.00017066,87879.0,87863.0,0.0113904]
[1766923960328,0.0259406,87878.0,87863.0,0.0113904]
[1766923960529,0.0259406,87877.0,87863.0,0.0113904]
[1766923960730,0.0259406,87876.0,87863.0,0.0113904]
[1766923960930,0.0259406,87875.0,87863.0,0.0113904]
[1766923961136,0.0259406,87874.0,87863.0,0.0113904]
[1766923961436,0.00017066,87879.0,87863.0,0.0113904]
[1766923961638,0.0259406,87878.0,87863.0,0.0113904]
[1766923961833,0.0259406,87877.0,87863.0,0.0113904]
[1766923962033,0.0259406,87876.0,87863.0,0.0113904]
[1766923962338,0.0259406,87875.0,87863.0,0.0113904]
[1766923962527,0.0259406,87874.0,87863.0,0.0113904]
[1766923962729,0.00017066,87879.0,87863.0,0.0113904]
[1766923962925,0.0259406,87878.0,87863.0,0.0113904]
[1766923963125,0.0259406,87877.0,87863.0,0.0113904]
[1766923963335,0.0259406,87876.0,87863.0,0.0113904]
[1766923963634,0.00017066,87879.0,87867.0,0.0113898]
[1766923964234,0.15376,87885.0,87865.0,0.01308691]
[1766923964435,0.08176,87885.0,87869.0,0.0113896]
[1766923964639,0.06076,87885.0,87869.0,0.0113896]
[1766923964933,0.07282837,87898.0,87869.0,0.05696]
[1766923965136,0.00017066,87891.0,87878.0,0.0113884]
[1766923965337,0.011386,87898.0,87878.0,0.0683884]
[1766923965531,0.0113855,87901.0,87880.0,0.0113881]
[1766923966328,0.00017066,87899.0,87880.0,0.0113881]
[1766923969638,0.00017066,87899.0,87883.0,0.0113878]
[1766923970527,0.00017066,87899.0,87878.0,0.057]
[1766923970838,0.0338,87909.0,87890.0,0.0113868]
[1766923971048,0.0113846,87908.0,87887.0,0.1651873]
[1766923971634,0.00017066,87906.0,87889.0,0.00017066]
[1766923974844,0.011385,87905.0,87889.0,0.00017066]
[1766923978151,0.00017066,87906.0,87889.0,0.00017066]
[1766923978540,0.01155556,87906.0,87889.0,0.00017066]
[1766923980146,0.0113852,87904.0,87889.0,0.00017066]
[1766923981147,0.0113854,87902.0,87889.0,0.00017066]
[1766923985941,0.011385,87905.0,87889.0,0.00017066]
[1766923992256,0.02535284,87904.0,87889.0,0.00017066]
[1766923992457,0.011385,87905.0,87889.0,0.00017066]
[1766923992652,0.02535284,87904.0,87889.0,0.00017066]
[1766923992853,0.011385,87905.0,87889.0,0.00017066]
[1766923993053,0.02535205,87904.0,87889.0,0.00017066]
[1766923993253,0.02535205,87903.0,87889.0,0.00017066]
[1766923993453,0.011385,87905.0,87889.0,0.00017066]
[1766923993654,0.02536434,87904.0,87889.0,0.00017066]
[1766923993856,0.02536434,87903.0,87889.0,0.00017066]
[1766923994046,0.011385,87905.0,87889.0,0.00017066]
[1766923994250,0.02537958,87904.0,87889.0,0.00017066]
[1766923994450,0.02537958,87903.0,87889.0,0.00017066]
[1766923994647,0.02537958,87902.0,87889.0,0.00017066]
[1766923994860,0.02537958,87901.0,87889.0,0.00017066]
[1766923995051,0.011385,87905.0,87889.0,0.00017066]
[1766923995251,0.0253824,87904.0,87889.0,0.00017066]
[1766923995448,0.0253824,87903.0,87889.0,0.00017066]
[1766923995652,0.0253824,87902.0,87889.0,0.00017066]
[1766923995853,0.011385,87905.0,87889.0,0.00017066]
[1766923996062,0.02492958,87904.0,87889.0,0.00017066]
[1766923996263,0.02492958,87903.0,87889.0,0.00017066]
[1766923996464,0.02492958,87902.0,87889.0,0.00017066]
[1766923996669,0.011385,87905.0,87889.0,0.00017066]
[1766923996865,0.02492891,87904.0,87889.0,0.00017066]
[1766923997056,0.02492891,87903.0,87889.0,0.00017066]
[1766923997256,0.02492891,87902.0,87889.0,0.00017066]
[1766923997554,0.02492891,87901.0,87889.0,0.00017066]
[1766923997755,0.011385,87905.0,87889.0,0.00017066]
[1766923997955,0.024932,87904.0,87889.0,0.00017066]
[1766923998159,0.024932,87903.0,87889.0,0.00017066]
[1766923998359,0.024932,87902.0,87889.0,0.00017066]
[1766923998554,0.024932,87901.0,87889.0,0.00017066]
[1766923998752,0.011385,87905.0,87889.0,0.00017066]
[1766923998953,0.02493582,87904.0,87889.0,0.00017066]
[1766923999165,0.02493582,87903.0,87889.0,0.00017066]
[1766923999366,0.02493582,87902.0,87889.0,0.00017066]
[1766923999566,0.02493582,87901.0,87889.0,0.00017066]
[1766923999767,0.02493582,87900.0,87889.0,0.00017066]
[1766924000066,0.011385,87905.0,87889.0,0.00017066]
[1766924000258,0.02495304,87904.0,87889.0,0.00017066]
[1766924000558,0.02495304,87903.0,87889.0,0.00017066]
[1766924000754,0.02495304,87902.0,87889.0,0.00017066]
[1766924000958,0.02495304,87901.0,87889.0,0.00017066]
[1766924001154,0.011385,87905.0,87889.0,0.00017066]
[1766924001365,0.0113852,87903.0,87889.0,0.00017066]
[1766924001664,0.02495311,87902.0,87889.0,0.00017066]
[1766924001866,0.02495311,87901.0,87889.0,0.00017066]
[1766924002067,0.0113852,87903.0,87889.0,0.00017066]
[1766924002263,0.02495312,87902.0,87889.0,0.00017066]
[1766924002463,0.02495312,87901.0,87889.0,0.00017066]
[1766924002664,0.0113852,87903.0,87889.0,0.00017066]
[1766924002864,0.02495314,87902.0,87889.0,0.00017066]
[1766924003164,0.02495314,87901.0,87889.0,0.00017066]
[1766924003366,0.0113852,87903.0,87889.0,0.00017066]
[1766924003564,0.02495345,87902.0,87889.0,0.00017066]
[1766924003768,0.0113855,87901.0,87889.0,0.00017066]
[1766924004474,0.0113852,87904.0,87889.0,0.00017066]
[1766924004771,0.02495382,87903.0,87889.0,0.00017066]
[1766924004972,0.03633922,87902.0,87889.0,0.00017066]
[1766924005163,0.0113854,87902.0,87889.0,0.00017066]
[1766924012872,0.011385,87905.0,87889.0,0.00017066]
[1766924013074,0.02495402,87904.0,87889.0,0.00017066]
[1766924013374,0.02495402,87903.0,87889.0,0.00017066]
[1766924013568,0.02495402,87902.0,87889.0,0.00017066]
[1766924013769,0.02495398,87901.0,87889.0,0.00017066]
[1766924013967,0.011385,87905.0,87889.0,0.00017066]
[1766924014167,0.02495386,87904.0,87889.0,0.00017066]
[1766924014375,0.02495386,87903.0,87889.0,0.00017066]
[1766924014576,0.02495386,87902.0,87889.0,0.00017066]
[1766924014772,0.02495386,87901.0,87889.0,0.00017066]
[1766924014972,0.011385,87905.0,87889.0,0.00017066]
[1766924015170,0.02495383,87904.0,87889.0,0.00017066]
[1766924015369,0.02495383,87903.0,87889.0,0.00017066]
[1766924015571,0.02495383,87902.0,87889.0,0.00017066]
[1766924015772,0.02495383,87901.0,87889.0,0.00017066]
[1766924015976,0.011385,87905.0,87889.0,0.00017066]
[1766924016272,0.0249538,87904.0,87889.0,0.00017066]
[1766924016471,0.0249538,87903.0,87889.0,0.00017066]
[1766924016671,0.0249538,87902.0,87889.0,0.00017066]
[1766924016871,0.0249538,87901.0,87889.0,0.00017066]